bitfinex-derivatives/quotes_SOLF0:USTF0_20241101
["timestamp","ask_amount","ask_price","bid_price","bid_amount"]
[1730434096260,10.34503072,167.42,167.38,8.28339426]
[1730434096462,13.33493072,167.42,167.38,8.28339426]
[1730434096779,10.34503072,167.42,167.39,8.28339426]
[1730434096964,10.34503072,167.44,167.39,8.28339426]
[1730434097370,13.33463072,167.44,167.41,8.28339426]
[1730434097669,2.9896,167.44,167.41,8.28339426]
[1730434100866,2.9896,167.44,167.38,2.84]
[1730434100867,2.9893,167.46,167.43,8.28339426]
[1730434101867,2.9889,167.48,167.43,11.27299426]
[1730434102067,8.28339426,167.5,167.45,8.28339426]
[1730434102568,18.62842498,167.5,167.45,8.28339426]
[1730434102770,18.62842498,167.49,167.43,10.86979426]
[1730434102967,10.34503072,167.48,167.43,10.86979426]
[1730434103171,8.28339426,167.47,167.43,2.5864]
[1730434103764,8.28339426,167.47,167.42,11.10339426]
[1730434103765,8.28339426,167.46,167.42,2.82]
[1730434103969,8.28339426,167.46,167.4,8.28339426]
[1730434105277,2.9897,167.44,167.4,8.28339426]
[1730434105487,8.28339426,167.46,167.4,8.28339426]
[1730434105877,2.9897,167.44,167.4,8.28339426]
[1730434108867,10.34503072,167.48,167.43,8.28339426]
[1730434109071,8.28339426,167.52,167.36,2.5864]
[1730434109072,18.62842498,167.52,167.47,8.28339426]
[1730434109272,10.34503072,167.51,167.47,8.28339426]
[1730434109788,2.9886,167.5,167.47,6.28339426]
[1730434111790,10.34503072,167.53,167.49,8.28339426]
[1730434111977,10.34503072,167.56,167.52,8.28339426]
[1730434112383,11.27706421,167.6,167.52,8.28339426]
[1730434112590,21.62209493,167.6,167.52,8.28339426]
[1730434112789,2.987,167.58,167.52,8.28339426]
[1730434113991,8.28339426,167.58,167.5,4.1834]
[1730434114177,2.9876,167.55,167.51,2.82]
[1730434114980,2.9874,167.56,167.51,11.10339426]
[1730434115985,2.9874,167.56,167.52,2.82]
[1730434117391,2.9874,167.56,167.51,8.28339426]
[1730434117584,2.9874,167.56,167.52,2.82]
[1730434120696,8.28339426,167.56,167.5,9.64679426]
[1730434120996,8.28339426,167.56,167.51,2.82]
[1730434121387,2.9879,167.54,167.51,2.82]
[1730434124495,2.9879,167.53,167.51,2.82]
[1730434124890,2.9879,167.53,167.5,12.46679426]
[1730434125291,8.28339426,167.56,167.5,12.46679426]
[1730434125292,2.9881,167.52,167.5,12.46679426]
[1730434125500,2.9881,167.52,167.48,8.28339426]
[1730434125698,8.28339426,167.55,167.5,2.82]
[1730434126597,2.9882,167.52,167.5,2.82]
[1730434127196,2.9878,167.54,167.5,2.82]
[1730434127394,8.28339426,167.56,167.5,2.82]
[1730434128301,2.9882,167.52,167.5,2.82]
[1730434128701,8.28339426,167.55,167.5,2.82]
[1730434129001,8.28339426,167.55,167.51,8.28339426]
[1730434129002,2.9876,167.55,167.51,8.28339426]
[1730434129591,2.9876,167.55,167.52,2.82]
[1730434129994,8.28339426,167.56,167.49,8.28339426]
[1730434130307,2.9882,167.52,167.5,2.82]
[1730434130497,8.28339426,167.56,167.5,2.82]
[1730434131198,2.9879,167.54,167.51,8.28339426]
[1730434132101,2.9875,167.56,167.51,8.28339426]
[1730434132398,8.28339426,167.58,167.51,8.28339426]
[1730434133204,8.28339426,167.56,167.51,8.28339426]
[1730434134292,2.9878,167.54,167.51,8.28339426]
[1730434138206,2.9875,167.56,167.53,8.28339426]
[1730434139309,8.28339426,167.63,167.55,8.28339426]
[1730434139619,32.94847018,167.69,167.58,8.28339426]
[1730434139620,8.28339426,167.65,167.58,8.28339426]
[1730434139912,11.33549053,167.65,167.58,8.28339426]
[1730434140217,8.28339426,167.65,167.58,8.28339426]
[1730434140613,8.28339426,167.65,167.58,11.10339426]
[1730434141115,2.9863,167.62,167.58,2.82]
[1730434141314,8.28339426,167.63,167.57,8.28339426]
[1730434141506,2.9868,167.6,167.56,2.82]
[1730434142225,2.9869,167.59,167.56,2.82]
[1730434142823,2.9871,167.58,167.56,2.82]
[1730434143919,8.28339426,167.57,167.51,8.28339426]
[1730434144216,2.9879,167.54,167.51,8.28339426]
[1730434145523,2.9875,167.56,167.51,8.28339426]
[1730434145718,2.9875,167.56,167.53,8.28339426]
[1730434146118,2.9872,167.57,167.54,8.28339426]
[1730434146327,44.68014858,167.6,167.54,8.28339426]
[1730434146531,44.68014858,167.6,167.54,11.10339426]
[1730434147021,2.987,167.58,167.54,11.10339426]
[1730434147225,36.39675432,167.6,167.56,8.28339426]
[1730434147920,39.38355432,167.6,167.56,8.28339426]
[1730434148222,36.39675432,167.6,167.56,8.28339426]
[1730434148621,39.38345432,167.6,167.56,8.28339426]
[1730434149126,2.987,167.59,167.56,8.28339426]
[1730434152433,2.9867,167.6,167.57,8.28339426]
[1730434156221,8.28339426,167.63,167.57,8.28339426]
[1730434156427,2.9865,167.61,167.57,8.28339426]
[1730434157732,2.9869,167.59,167.57,8.28339426]
[1730434157936,9.40280018,167.64,167.56,8.28339426]
[1730434157937,8.28339426,167.61,167.56,8.28339426]
[1730434158436,2.987,167.59,167.56,8.28339426]
[1730434159544,2.9871,167.58,167.56,8.28339426]
[1730434163255,8.28339426,167.63,167.56,8.28339426]
[1730434163545,8.28339426,167.6,167.55,8.28339426]
[1730434163734,8.28339426,167.6,167.54,2.84]
[1730434164649,8.28339426,167.6,167.53,8.28339426]
[1730434164947,8.28339426,167.6,167.52,11.12339426]
[1730434164948,8.28339426,167.58,167.52,11.12339426]
[1730434165346,2.9877,167.54,167.52,11.12339426]
[1730434166742,17.68586481,167.58,167.52,8.28339426]
[1730434166942,2.9879,167.53,167.52,8.28339426]
[1730434167247,8.28339426,167.58,167.52,8.28339426]
[1730434167937,2.9879,167.54,167.52,8.28339426]
[1730434168140,17.70908828,167.58,167.52,8.28339426]
[1730434169249,2.9879,167.54,167.52,8.28339426]
[1730434169638,9.42569402,167.57,167.52,8.28339426]
[1730434169842,2.9879,167.53,167.52,8.28339426]
[1730434177658,2.9879,167.53,167.46,2.5598]
[1730434177659,8.28339426,167.55,167.49,8.28339426]
[1730434178062,8.28339426,167.55,167.5,8.28339426]
[1730434178548,2.9882,167.52,167.5,8.28339426]
[1730434178752,8.28339426,167.56,167.5,8.28339426]
[1730434179463,11.26492991,167.56,167.5,8.28339426]
[1730434180355,2.9883,167.51,167.5,8.28339426]
[1730434180860,9.42569402,167.55,167.5,8.28339426]
[1730434181164,8.28339426,167.58,167.48,2.84]
[1730434181165,9.42569402,167.57,167.52,8.28339426]
[1730434181347,8.28339426,167.58,167.52,8.28339426]
[1730434181549,2.9877,167.55,167.52,8.28339426]
[1730434181966,9.42569402,167.58,167.52,8.28339426]
[1730434182172,2.9878,167.54,167.52,8.28339426]
[1730434182855,2.9878,167.54,167.51,8.28339426]
[1730434183246,9.42569402,167.58,167.53,8.28339426]
[1730434183458,16.5205118,167.61,167.54,8.28339426]
[1730434183459,2.9872,167.57,167.54,8.28339426]
[1730434184056,2.9872,167.57,167.56,8.28339426]
[1730434184253,2.9871,167.58,167.56,8.28339426]
[1730434187665,2.9871,167.58,167.54,8.28339426]
[1730434188554,8.28339426,167.61,167.54,8.28339426]
[1730434188756,2.9873,167.57,167.54,8.28339426]
[1730434188954,8.28339426,167.61,167.54,8.28339426]
[1730434189157,8.28339426,167.59,167.54,8.28339426]
[1730434189769,17.70908828,167.59,167.54,8.28339426]
[1730434189969,8.28339426,167.59,167.54,8.28339426]
[1730434190270,2.9874,167.56,167.54,8.28339426]
[1730434190660,8.28339426,167.59,167.54,8.28339426]
[1730434190855,2.9871,167.58,167.54,8.28339426]
[1730434191159,8.28339426,167.59,167.54,8.28339426]
[1730434192270,2.9874,167.57,167.54,8.28339426]
[1730434192674,8.28339426,167.59,167.53,8.28339426]
[1730434192857,2.9877,167.55,167.53,8.28339426]
[1730434194962,2.9877,167.55,167.54,8.28339426]
[1730434200378,2.9877,167.55,167.52,15.07769426]
[1730434202276,8.28339426,167.58,167.52,15.07769426]
[1730434202482,2.9879,167.53,167.52,11.10339426]
[1730434203071,2.9879,167.53,167.52,2.82]
[1730434203774,8.28339426,167.56,167.5,8.28339426]
[1730434203973,2.9883,167.51,167.49,11.10339426]
[1730434204176,8.28339426,167.55,167.49,8.28339426]
[1730434204581,8.28339426,167.53,167.47,8.28339426]
[1730434204886,8.28339426,167.51,167.46,2.82]
[1730434205280,2.989,167.48,167.46,2.82]
[1730434205678,2.989,167.48,167.45,12.30119426]
[1730434207082,2.9892,167.46,167.45,8.28339426]
[1730434207387,8.28339426,167.47,167.44,73.81471]
[1730434207883,2.9894,167.45,167.44,73.81471]
[1730434212978,2.9894,167.45,167.44,71.74551]
[1730434213190,5.94614834,167.45,167.44,71.74551]
[1730434213881,15.38821687,167.45,167.44,71.74551]
[1730434214194,5.94614834,167.45,167.44,9.24825572]
[1730434216889,2.9906,167.39,167.35,8.28339426]
[1730434218896,8.28339426,167.4,167.35,8.28339426]
[1730434219095,2.9901,167.41,167.37,8.28339426]
[1730434220486,11.10339426,167.43,167.37,8.28339426]
[1730434220688,2.99,167.42,167.37,8.28339426]
[1730434221092,8.28339426,167.44,167.38,11.27399426]
[1730434221492,8.28339426,167.44,167.39,8.28339426]
[1730434221996,11.27309426,167.44,167.39,8.28339426]
[1730434222304,11.27309426,167.44,167.38,8.28339426]
[1730434222692,8.28339426,167.43,167.37,11.10339426]
[1730434222903,8.28339426,167.41,167.37,2.82]
[1730434223401,8.28339426,167.41,167.35,8.28339426]
[1730434223402,2.9905,167.39,167.35,8.28339426]
[1730434223905,2.9905,167.39,167.34,14.96039426]
[1730434224791,2.9905,167.39,167.34,12.14039426]
[1730434225494,8.28339426,167.4,167.34,9.59379426]
[1730434225690,2.82,167.43,167.34,1.3104]
[1730434225691,2.9908,167.37,167.34,1.3104]
[1730434225997,8.28339426,167.36,167.31,8.28339426]
[1730434226212,8.28339426,167.35,167.3,2.82]
[1730434226804,2.82,167.39,167.3,2.82]
[1730434226805,8.28339426,167.36,167.3,2.82]
[1730434226997,8.28339426,167.36,167.29,8.28339426]
[1730434226998,8.28339426,167.36,167.29,11.10339426]
[1730434227400,2.9913,167.35,167.29,11.10339426]
[1730434228006,2.9914,167.34,167.29,11.10339426]
[1730434230911,2.9914,167.34,167.29,14.09559426]
[1730434231993,11.27449426,167.36,167.3,11.27539426]
[1730434232192,11.27449426,167.36,167.3,8.28339426]
[1730434232388,1.2816,167.41,167.34,8.28339426]
[1730434232389,11.10339426,167.4,167.34,8.28339426]
[1730434233197,2.9905,167.39,167.34,8.28339426]
[1730434233404,11.10339426,167.4,167.34,8.28339426]
[1730434234304,2.9907,167.38,167.34,8.28339426]
[1730434237110,14.09369426,167.4,167.34,11.27459426]
[1730434237799,11.27369426,167.4,167.34,11.27459426]
[1730434238309,8.28339426,167.4,167.35,8.28339426]
[1730434238505,8.28339426,167.4,167.35,9.59519426]
[1730434240113,2.9901,167.41,167.35,9.59519426]
[1730434240407,2.9901,167.41,167.35,12.58629426]
[1730434240910,8.28339426,167.42,167.35,12.58629426]
[1730434241111,11.27339426,167.42,167.35,12.58629426]
[1730434241308,8.28339426,167.43,167.38,2.9906]
[1730434241494,8.28339426,167.43,167.39,8.28339426]
[1730434241698,44.70738501,167.47,167.4,8.28339426]
[1730434242212,44.70738501,167.47,167.41,4.3469]
[1730434243009,47.69638501,167.47,167.41,4.3469]
[1730434243513,47.69638501,167.47,167.41,2.6277]
[1730434244808,44.70738501,167.47,167.41,2.6277]
[1730434244997,2.9892,167.46,167.41,2.6277]
[1730434250609,8.28339426,167.47,167.41,2.6277]
[1730434250816,8.28339426,167.47,167.42,9.53249426]
[1730434251214,8.28339426,167.45,167.42,1.2491]
[1730434251815,8.28339426,167.44,167.42,1.2491]
[1730434252107,8.28339426,167.44,167.41,1.357]
[1730434253706,11.27289426,167.44,167.41,1.357]
[1730434255418,2.9895,167.44,167.41,1.357]
[1730434258612,8.28339426,167.45,167.41,1.357]
[1730434258613,2.9893,167.46,167.41,1.357]
[1730434259510,2.9893,167.46,167.41,9.64039426]
[1730434260310,2.9893,167.46,167.41,12.63049426]
[1730434260527,2.9893,167.46,167.41,4.3471]
[1730434262010,8.28339426,167.45,167.41,1.357]
[1730434266327,2.9893,167.46,167.41,9.64039426]
[1730434267414,11.27269426,167.46,167.41,1.357]
[1730434271630,2.9893,167.46,167.41,9.64039426]
[1730434272227,2.9888,167.49,167.44,8.28339426]
[1730434272427,8.28339426,167.5,167.44,8.28339426]
[1730434273020,2.9886,167.49,167.44,8.28339426]
[1730434278647,8.28339426,167.49,167.43,8.28339426]
[1730434278935,8.28339426,167.46,167.41,12.46039426]
[1730434279325,17.68361353,167.53,167.41,2.82]
[1730434279326,11.27309426,167.44,167.41,2.82]
[1730434284733,2.9897,167.44,167.41,2.82]
[1730434287335,2.9897,167.44,167.39,8.28339426]
[1730434287542,2.9897,167.44,167.39,11.10339426]
[1730434292247,2.9894,167.45,167.4,8.28339426]
[1730434292646,8.28339426,167.48,167.42,8.28339426]
[1730434292837,2.9893,167.46,167.42,8.28339426]
[1730434294450,8.28339426,167.47,167.42,8.28339426]
[1730434294644,2.9894,167.45,167.42,8.28339426]
[1730434295443,11.27289426,167.45,167.4,8.28339426]
[1730434295661,2.9895,167.45,167.4,8.28339426]
[1730434295845,2.9895,167.45,167.42,8.28339426]
[1730434308957,8.28339426,167.45,167.41,2.82]
[1730434309164,2.9898,167.43,167.41,2.82]
[1730434309466,2.9898,167.43,167.39,8.28339426]
[1730434309656,2.9898,167.43,167.4,1.49590834]
[1730434309964,2.9898,167.43,167.39,8.28339426]
[1730434310169,2.9898,167.43,167.4,1.4959115]
[1730434310464,2.9898,167.43,167.39,8.28339426]
[1730434310856,2.9898,167.43,167.4,1.49590384]
[1730434311057,2.9898,167.43,167.39,8.28339426]
[1730434311362,2.9898,167.43,167.4,1.4959051]
[1730434311563,2.9898,167.43,167.39,8.28339426]
[1730434311765,2.9898,167.43,167.4,1.4959115]
[1730434311967,2.9898,167.43,167.39,8.28339426]
[1730434312169,2.9898,167.43,167.4,1.49590384]
[1730434312363,2.9898,167.43,167.39,8.28339426]
[1730434312563,2.9898,167.43,167.4,1.49590384]
[1730434312769,2.9898,167.43,167.39,8.28339426]
[1730434312960,2.9898,167.43,167.4,1.49590384]
[1730434313264,2.9898,167.43,167.39,8.28339426]
[1730434313465,2.9898,167.43,167.4,1.4959115]
[1730434313669,2.9898,167.43,167.39,8.28339426]
[1730434313854,2.9898,167.43,167.4,1.4959115]
[1730434314053,2.9898,167.43,167.39,8.28339426]
[1730434314257,2.9898,167.43,167.4,1.4959115]
[1730434314459,2.9898,167.43,167.39,8.28339426]
[1730434314664,2.9898,167.43,167.4,1.4959115]
[1730434314864,2.9898,167.43,167.39,8.28339426]
[1730434315065,2.9898,167.43,167.4,1.4959051]
[1730434315266,2.9898,167.43,167.39,8.28339426]
[1730434315461,2.9898,167.43,167.4,1.49591528]
[1730434315672,2.9898,167.43,167.39,8.28339426]
[1730434315867,2.9898,167.43,167.4,1.49592169]
[1730434316064,2.9898,167.43,167.39,8.28339426]
[1730434316265,2.9898,167.43,167.4,1.4959051]
[1730434316467,2.9898,167.43,167.39,8.28339426]
[1730434316677,2.9898,167.43,167.4,1.4959051]
[1730434316863,2.9898,167.43,167.39,8.28339426]
[1730434317172,2.9898,167.43,167.4,1.4959115]
[1730434317361,2.9898,167.43,167.39,8.28339426]
[1730434317760,2.9898,167.43,167.4,1.4959115]
[1730434317965,8.28339426,167.44,167.38,2.82]
[1730434318273,2.99,167.42,167.39,1.49592569]
[1730434318471,2.99,167.42,167.4,1.49592569]
[1730434318670,2.99,167.42,167.38,2.82]
[1730434318968,2.99,167.42,167.39,1.49592443]
[1730434319174,2.99,167.42,167.4,1.49592443]
[1730434319365,2.99,167.42,167.38,2.82]
[1730434319568,2.99,167.42,167.39,1.49592569]
[1730434319763,2.99,167.42,167.4,1.49592569]
[1730434320075,2.99,167.42,167.37,14.09419426]
[1730434320374,2.99,167.42,167.38,3.8894068]
[1730434320569,2.99,167.42,167.37,14.09419426]
[1730434320570,2.99,167.42,167.39,1.49592569]
[1730434320774,2.99,167.42,167.4,1.49592569]
[1730434320963,2.99,167.42,167.37,14.09419426]
[1730434321164,2.99,167.42,167.38,3.88938688]
[1730434321359,2.99,167.42,167.39,1.49591803]
[1730434321675,2.99,167.42,167.4,1.49591803]
[1730434321869,2.99,167.42,167.37,14.09419426]
[1730434322077,2.99,167.42,167.38,3.88940352]
[1730434322373,2.99,167.42,167.39,1.49592443]
[1730434322564,2.99,167.42,167.4,1.49592443]
[1730434322764,2.99,167.42,167.37,14.09419426]
[1730434322964,2.99,167.42,167.38,3.88942019]
[1730434323264,2.99,167.42,167.39,1.49593084]
[1730434323474,2.99,167.42,167.4,1.49593084]
[1730434323670,2.99,167.42,167.37,14.09419426]
[1730434324273,2.99,167.42,167.38,3.88940355]
[1730434324477,2.99,167.42,167.39,1.49592471]
[1730434324679,2.99,167.42,167.37,14.09419426]
[1730434324861,8.28339426,167.41,167.38,3.88941137]
[1730434325176,8.28339426,167.4,167.31,8.28339426]
[1730434325374,8.28339426,167.37,167.32,6.71041529]
[1730434325568,2.991,167.36,167.32,2.82]
[1730434326472,2.9908,167.37,167.32,2.82]
[1730434326774,8.28339426,167.4,167.35,8.28339426]
[1730434327170,2.9906,167.38,167.35,8.28339426]
[1730434328366,2.9906,167.38,167.33,11.27479426]
[1730434332774,2.9906,167.38,167.32,14.09499426]
[1730434332975,2.9911,167.35,167.32,2.82]
[1730434340384,8.28339426,167.38,167.34,8.28339426]
[1730434341085,11.27419426,167.38,167.34,8.28339426]
[1730434348588,2.9902,167.41,167.36,8.28339426]
[1730434348787,2.9902,167.41,167.36,11.10339426]
[1730434348988,8.28339426,167.43,167.38,8.28339426]
[1730434349188,8.28339426,167.43,167.36,2.82]
[1730434349189,8.28339426,167.45,167.39,8.28339426]
[1730434350302,8.28339426,167.45,167.39,11.27369426]
[1730434352393,11.27279426,167.45,167.4,2.82]
[1730434354795,2.9896,167.44,167.4,2.82]
[1730434356193,8.28339426,167.45,167.4,2.82]
[1730434356393,8.28339426,167.43,167.38,2.82]
[1730434356593,8.28339426,167.42,167.38,2.82]
[1730434356790,8.28339426,167.4,167.35,8.28339426]
[1730434356991,2.82,167.49,167.34,6.9468]
[1730434356992,8.28339426,167.38,167.34,5.4708]
[1730434357299,2.9913,167.35,167.31,11.10339426]
[1730434358204,9.45677158,167.41,167.31,2.82]
[1730434358205,11.27449426,167.36,167.31,2.82]
[1730434358403,8.28339426,167.36,167.31,2.82]
[1730434358791,2.9912,167.35,167.31,2.82]
[1730434358991,8.28339426,167.36,167.31,2.82]
[1730434359699,8.28339426,167.34,167.28,10.93669426]
[1730434359899,8.28339426,167.34,167.28,13.75669426]
[1730434360401,2.9917,167.32,167.28,13.75669426]
[1730434361190,2.9919,167.31,167.28,4.1188]
[1730434361593,2.9919,167.31,167.28,1.2988]
[1730434367514,2.9915,167.33,167.3,8.28339426]
[1730434367699,2.9915,167.33,167.28,4.2911]
[1730434367700,9.60859426,167.37,167.31,8.28339426]
[1730434367897,8.28339426,167.37,167.31,8.28339426]
[1730434368400,2.9911,167.36,167.31,8.28339426]
[1730434368704,8.28339426,167.37,167.31,8.28339426]
[1730434370403,2.9913,167.35,167.31,8.28339426]
[1730434373412,8.28339426,167.35,167.3,11.10339426]
[1730434373715,8.28339426,167.34,167.3,2.82]
[1730434376103,11.27489426,167.34,167.3,2.82]
[1730434376307,8.28339426,167.34,167.3,2.82]
[1730434377416,2.9915,167.33,167.3,2.82]
[1730434380621,2.9915,167.33,167.3,11.10339426]
[1730434380813,2.9913,167.34,167.3,11.10339426]
[1730434382625,2.9912,167.35,167.31,8.28339426]
[1730434383713,8.28339426,167.35,167.3,11.10339426]
[1730434383918,2.9918,167.32,167.3,2.82]
[1730434387522,2.9915,167.33,167.3,2.82]
[1730434390124,2.9915,167.33,167.3,11.10339426]
[1730434392529,2.9912,167.35,167.31,8.28339426]
[1730434394124,2.9909,167.37,167.33,8.28339426]
[1730434394323,8.28339426,167.36,167.31,8.28339426]
[1730434394523,8.28339426,167.35,167.3,11.10339426]
[1730434394724,8.28339426,167.35,167.3,2.82]
[1730434394924,2.9915,167.33,167.3,2.82]
[1730434396020,2.9919,167.31,167.27,10.96799426]
[1730434396228,8.28339426,167.32,167.28,2.82]
[1730434396430,8.28339426,167.32,167.27,1.3312]
[1730434396622,2.9922,167.29,167.26,2.82]
[1730434396822,8.28339426,167.28,167.22,8.28339426]
[1730434397019,8.28339426,167.27,167.21,8.28339426]
[1730434397227,2.9929,167.25,167.22,2.82]
[1730434397627,2.9931,167.24,167.22,2.82]
[1730434398534,8.28339426,167.27,167.22,2.82]
[1730434400238,2.993,167.25,167.22,2.82]
[1730434400426,8.28339426,167.27,167.22,2.82]
[1730434400925,11.27609426,167.27,167.22,2.82]
[1730434403136,2.9928,167.26,167.22,2.82]
[1730434406939,8.28339426,167.27,167.22,11.10339426]
[1730434407136,11.27589426,167.28,167.23,2.9931]
[1730434408139,11.27589426,167.28,167.22,14.09679426]
[1730434408140,2.9926,167.27,167.22,14.09679426]
[1730434409848,8.28339426,167.28,167.22,14.09679426]
[1730434410147,11.27579426,167.28,167.22,14.09679426]
[1730434412445,2.9926,167.27,167.22,14.09679426]
[1730434413851,11.27589426,167.28,167.23,2.9932]
[1730434415549,8.28339426,167.28,167.24,2.993]
[1730434417542,11.27579426,167.28,167.24,2.993]
[1730434421059,11.27549426,167.3,167.26,2.9927]
[1730434421260,11.27549426,167.3,167.26,2.82]
[1730434421557,8.28339426,167.3,167.26,5.8127]
[1730434421953,8.28339426,167.3,167.26,2.82]
[1730434423271,11.27539426,167.3,167.26,2.82]
[1730434435269,8.28339426,167.38,167.29,8.28339426]
[1730434435570,8.28339426,167.38,167.32,11.27509426]
[1730434435571,2.9906,167.38,167.32,11.27509426]
[1730434435774,2.9906,167.38,167.33,2.82]
[1730434444282,2.9906,167.38,167.34,8.28339426]
[1730434455389,2.9906,167.38,167.35,8.28339426]
[1730434459295,11.27389426,167.39,167.35,8.28339426]
[1730434467600,2.9905,167.39,167.35,8.28339426]
[1730434467996,8.28339426,167.41,167.35,8.28339426]
[1730434468202,2.9902,167.4,167.37,8.28339426]
[1730434468403,10.79849426,167.43,167.37,8.28339426]
[1730434469409,2.9902,167.41,167.37,8.28339426]
[1730434477217,2.9902,167.41,167.35,2.9911]
[1730434477218,2.9899,167.43,167.38,8.28339426]
[1730434478220,44.71050039,167.44,167.38,8.28339426]
[1730434478420,2.9897,167.43,167.38,8.28339426]
[1730434478616,36.42710613,167.44,167.4,8.28339426]
[1730434479515,36.42710613,167.44,167.42,8.28339426]
[1730434480310,36.42710613,167.44,167.42,11.27329426]
[1730434480914,36.42710613,167.44,167.43,8.28339426]
[1730434481119,8.28339426,167.51,167.43,8.28339426]
[1730434481314,8.28339426,167.53,167.45,8.28339426]
[1730434481524,8.28339426,167.53,167.47,8.28339426]
[1730434482422,2.9883,167.51,167.47,8.28339426]
[1730434485233,2.9883,167.51,167.46,8.28339426]
[1730434486827,11.27139426,167.53,167.48,2.9888]
[1730434487329,8.28339426,167.53,167.47,8.28339426]
[1730434488329,11.27149426,167.53,167.47,11.27239426]
[1730434488927,2.9881,167.53,167.49,8.28339426]
[1730434489625,8.28339426,167.54,167.49,8.28339426]
[1730434489826,11.27119426,167.54,167.49,8.28339426]
[1730434490025,8.28339426,167.56,167.5,8.28339426]
[1730434490228,4.31869829,167.58,167.52,8.28339426]
[1730434490229,8.28339426,167.57,167.52,8.28339426]
[1730434490829,2.9875,167.56,167.52,8.28339426]
[1730434491034,8.28339426,167.57,167.51,8.28339426]
[1730434491626,8.28339426,167.55,167.49,5.8085]
[1730434491939,8.28339426,167.54,167.49,8.28339426]
[1730434493325,2.988,167.53,167.49,8.28339426]
[1730434493941,8.28339426,167.56,167.49,8.28339426]
[1730434494143,2.9878,167.54,167.51,8.28339426]
[1730434497531,8.28339426,167.58,167.52,8.28339426]
[1730434497737,8.28339426,167.6,167.54,8.28339426]
[1730434497930,11.25978123,167.6,167.54,8.28339426]
[1730434499243,2.9875,167.56,167.54,8.28339426]
[1730434501444,8.28339426,167.6,167.54,8.28339426]
[1730434501646,2.9872,167.58,167.55,8.28339426]
[1730434501842,2.9872,167.58,167.57,8.28339426]
[1730434502055,2.9867,167.6,167.57,8.28339426]
[1730434502945,44.67646192,167.61,167.57,8.28339426]
[1730434503152,2.9869,167.59,167.57,8.28339426]
[1730434505948,2.9873,167.57,167.53,8.28339426]
[1730434507555,2.9873,167.57,167.52,2.8]
[1730434507556,2.9873,167.57,167.55,8.28339426]
[1730434513344,8.28339426,167.57,167.52,8.28339426]
[1730434513551,2.9878,167.54,167.52,8.28339426]
[1730434514151,2.9876,167.55,167.52,8.28339426]
[1730434518855,8.28339426,167.57,167.52,8.28339426]
[1730434519059,8.28339426,167.55,167.5,8.28339426]
[1730434519255,8.28339426,167.53,167.47,8.28339426]
[1730434519750,2.9886,167.5,167.47,8.28339426]
[1730434521164,8.28339426,167.52,167.47,8.28339426]
[1730434521165,2.9887,167.49,167.47,8.28339426]
[1730434521756,8.28339426,167.51,167.45,11.08339426]
[1730434521954,8.28339426,167.49,167.44,8.28339426]
[1730434522876,8.28339426,167.48,167.42,8.28339426]
[1730434523361,6.7549,167.53,167.42,8.28339426]
[1730434523362,2.9895,167.45,167.42,8.28339426]
[1730434526076,8.28339426,167.45,167.39,11.08339426]
[1730434526477,2.9896,167.44,167.41,8.28339426]
[1730434526775,8.28339426,167.47,167.41,8.28339426]
[1730434528371,2.9894,167.45,167.41,8.28339426]
[1730434528768,11.27259426,167.47,167.41,8.28339426]
[1730434529073,8.28339426,167.5,167.44,8.28339426]
[1730434529377,2.9886,167.49,167.44,8.28339426]
[1730434529573,8.28339426,167.5,167.44,8.28339426]
[1730434530374,3.9549,167.53,167.46,8.28339426]
[1730434530375,2.9883,167.51,167.46,8.28339426]
[1730434530579,8.28339426,167.52,167.46,8.28339426]
[1730434531677,2.9886,167.5,167.46,8.28339426]
[1730434535381,8.28339426,167.52,167.46,8.28339426]
[1730434535680,2.9886,167.49,167.46,8.28339426]
[1730434536571,11.27199426,167.49,167.44,8.28339426]
[1730434536769,8.28339426,167.49,167.43,11.08339426]
[1730434537373,2.9891,167.47,167.43,8.28339426]
[1730434537681,8.28339426,167.49,167.43,8.28339426]
[1730434538183,2.9889,167.48,167.43,8.28339426]
[1730434538572,8.28339426,167.5,167.44,8.28339426]
[1730434539884,2.9888,167.49,167.44,8.28339426]
[1730434540070,2.9888,167.49,167.43,2.9896]
[1730434540071,8.28339426,167.49,167.43,8.28339426]
[1730434540273,8.28339426,167.48,167.43,8.28339426]
[1730434541282,2.9892,167.47,167.43,8.28339426]
[1730434543079,8.28339426,167.48,167.43,8.28339426]